fUSD/lending_fUSD_20240608
["ID","MTS","AMOUNT","RATE_DAILY","PERIOD"]
[328810146,1717816252525,-155.50476405,0.00029998,2]
[328810147,1717816252534,-202.42459492,0.00029998,2]
[328810148,1717816252543,-2423.44320668,0.00029998,2]
[328810149,1717816252554,-1262.96264394,0.00029998,2]
[328810150,1717816252564,-155.0,0.00029998,2]
[328810151,1717816252574,-235.5479787,0.00029998,2]
[328810152,1717816252584,-246.40959803,0.00029998,2]
[328810153,1717816252594,-884.80522556,0.00029998,2]
[328810154,1717816252604,-325.29764742,0.00029998,2]
[328810155,1717816252613,-163.40351491,0.00029998,2]
[328810156,1717816252622,-243.06497227,0.00029998,2]
[328810157,1717816252632,-160.30813216,0.00029998,2]
[328810158,1717816252641,-156.02549366,0.00029998,2]
[328810159,1717816252651,-193.07481152,0.00029998,2]
[328810160,1717816252660,-269.6222555,0.00029998,2]
[328810161,1717816252670,-328.79708102,0.00029998,2]
[328810162,1717816252805,-163.73060844,0.00029998,7]
[328810163,1717816252816,-3440.44732775,0.00029998,4]
[328810164,1717816252825,-156.55338825,0.00029998,2]
[328810165,1717816252835,-6280.63949269,0.00029998,2]
[328810166,1717816252845,-188.59865802,0.00029998,2]
[328810167,1717816252854,-3904.72951584,0.00029998,2]
[328810168,1717816252864,-155.36330437,0.00029998,2]
[328810169,1717816252874,-1789.99143065,0.00029998,2]
[328810170,1717816252884,-500.0,0.00029998,3]
[328810171,1717816252894,-500.0,0.00029998,3]
[328810172,1717816252905,-151.0,0.00029998,7]
[328810173,1717816252915,-151.0,0.00029998,7]
[328810174,1717816252924,-245.726019,0.00029998,7]
[328810175,1717816252934,-158.08923739,0.00029999,2]
[328810176,1717816252943,-786.67739772,0.00029999,2]
[328810177,1717816252954,-6550.06,0.00029999,2]
[328810178,1717816252964,-4513.3670038,0.00029999,2]
[328810179,1717816252974,-2339.0,0.00029999,2]
[328810180,1717816252984,-2100.0,0.0003,2]
[328810181,1717816252994,-5946.17031754,0.0003,5]
[328810182,1717816253003,-784122.98554569,0.0003,2]
[328810183,1717816253178,-1930.44243095,0.0003,2]
[328810184,1717816253204,-23053.50872865,0.0003,2]
[328810185,1717816253300,-159.866607,0.00021644,2]
[328810186,1717816253311,-233.439714,0.000249,7]
[328810187,1717816253322,-233.439714,0.00025,7]
[328810188,1717816253331,-233.439714,0.00027399,7]
[328810189,1717816253341,-93.03253984,0.00028766,7]
[328810190,1717816254219,-1.9e-07,0.00028766,7]
[328810210,1717817234170,-179.76,0.00016712,2]
[328810211,1717817234203,-346.61395297,0.00017259,2]
[328810212,1717817234230,-193.24,0.00021248,2]
[328810213,1717817234254,-155.61762711,0.00023302,2]
[328810214,1717817234279,-500.0,0.00023402,2]
[328810215,1717817234308,-500.0,0.00023402,2]
[328810216,1717817234335,-215.23412418,0.0002395,2]
[328810218,1717817253181,-284.76587582,0.0002395,2]
[328810219,1717817253203,-173.97913527,0.00024384,2]
[328810223,1717817366116,-925.88123363,0.00017259,2]
[328810228,1717817411894,1042.51244556,0.00017259,2]
[328810229,1717817427890,717.65440793,0.00017259,2]
[328810235,1717817432934,-324.85803763,0.00017259,2]
[328810236,1717817432945,-677.947979,0.00023284,2]
[328810237,1717817432955,-500.0,0.00023402,2]
[328810238,1717817432965,-500.0,0.00023402,2]
[328810239,1717817432974,-500.0,0.0002395,2]
[328810240,1717817432987,-3735.45,0.00024052,2]
[328810241,1717817432997,-597.54894135,0.00024225,2]
[328810243,1717817433010,-1476.94465062,0.00024225,2]
[328810244,1717817433022,-500.0,0.00024225,2]
[328810245,1717817433037,-379.5527158,0.00024225,2]
[328810246,1717817433487,-783.74269223,0.00024225,2]
[328810247,1717817433497,-422.66,0.00024328,2]
[328810248,1717817433507,-79.32086473,0.00024384,2]
[328810249,1717817433517,-647.49023354,0.0002446,2]
[328810276,1717817439341,-1728.72368233,0.0002446,2]
[328810277,1717817439354,-443.83778674,0.0002446,2]
[328810278,1717817439367,-866.32629739,0.0002446,2]
[328810279,1717817439378,-500.0,0.00024498,2]
[328810280,1717817439389,-500.0,0.00024498,2]
[328810281,1717817439399,-666.48627095,0.00024606,2]
[328810282,1717817439412,-1464.43317001,0.00024606,2]
[328810283,1717817439428,-560.44267923,0.00024606,2]
[328810284,1717817439441,-996.40987981,0.00024606,2]
[328810285,1717817439451,-3668.713,0.00024663,2]
[328810286,1717817439462,-3721.805,0.00024775,2]
[328810287,1717817439472,-4090.44643592,0.000249,2]
[328810288,1717817440096,-2843.53526408,0.000249,2]
[328810290,1717817440106,-1392.53462796,0.00025045,2]
[328810291,1717817440116,-500.0,0.00025046,2]
[328810292,1717817440127,-500.0,0.00025594,2]
[328810293,1717817440137,-268.53614539,0.00025712,2]
[328810296,1717817442149,-2418.35420706,0.00025712,2]
[328810297,1717817442231,-2294.93964755,0.00025712,2]
[328810298,1717817442245,-500.0,0.00026142,2]
[328810299,1717817442256,-250.0,0.00026264,2]
[328810300,1717817442266,-271.36,0.00026448,2]
[328810301,1717817442276,-881.33886998,0.00026496,2]
[328810302,1717817442289,-4077.24113002,0.00026496,2]
[328810303,1717817442299,-169.35,0.00026502,2]
[328810304,1717817442309,-422.66,0.00026592,2]
[328810305,1717817442319,-198.17480507,0.0002669,2]
[328810306,1717817442992,-301.82519493,0.0002669,2]
[328810307,1717817443011,-123.45863363,0.00026936,2]
[328810312,1717817444853,-4962.37,0.00025763,2]
[328810313,1717817444863,-876.54136637,0.00026936,2]
[328810314,1717817444873,-167.0,0.00027223,2]
[328810315,1717817444882,-500.0,0.00027238,2]
[328810316,1717817444892,-4769.85305733,0.000274,2]
[328810317,1717817444906,-4913.12,0.0002741,2]
[328810318,1717817444916,-191.41,0.00027622,2]
[328810319,1717817444926,-500.0,0.00027786,2]
[328810320,1717817444936,-240.30105483,0.00027919,2]
[328810321,1717817444947,-154.75656005,0.00027941,2]
[328810322,1717817444957,-224.78043085,0.00028,2]
[328810323,1717817444967,-154.9850015,0.00028036,2]
[328810324,1717817444978,-153.16287005,0.00028062,2]
[328810325,1717817444989,-240.30105483,0.00028149,2]
[328810326,1717817444999,-166.66666666,0.00028206,2]
[328810327,1717817445009,-155.00435958,0.00028309,2]
[328810328,1717817445019,-158.13958158,0.00028317,2]
[328810329,1717817445029,-500.0,0.00028334,2]
[328810330,1717817445040,-158.13958158,0.00028383,2]
[328810331,1717817445050,-154.4044715,0.00028394,2]
[328810332,1717817445060,-166.66666665,0.00028509,2]
[328810333,1717817445070,-155.29545564,0.0002856,2]
[328810334,1717817445080,-155.29563223,0.00028576,2]
[328810335,1717817445091,-155.29563223,0.00028596,2]
[328810336,1717817445101,-155.29563223,0.0002861,2]
[328810337,1717817445111,-1471.0,0.00028634,2]
[328810338,1717817445121,-1453.72365296,0.00028766,2]
[328810339,1717817445134,-906.17357973,0.00028766,2]
[328810340,1717817445146,-20452.78966919,0.00028766,2]
[328810341,1717817445156,-154.9850015,0.00028797,2]
[328810342,1717817445166,-180.50309716,0.000288,2]
[328810343,1717817445176,-179.34305837,0.000288,2]
[328810344,1717817445186,-422.66,0.00028856,2]
[328810345,1717817445196,-155.73782342,0.00028868,2]
[328810346,1717817445206,-200.0,0.00028882,2]
[328810347,1717817445216,-4889.4577,0.00028891,2]
[328810348,1717817445226,-813.9757,0.000289,2]
[328810349,1717817445236,-1000.0,0.000289,2]
[328810350,1717817445246,-55843.8401042,0.000289,2]
[328810457,1717817868929,-16906.0,0.00014,2]
[328810462,1717818447142,-1990.15477958,0.00013999,2]
[328810464,1717818632471,-781.03258899,0.00013999,2]
[328810475,1717818632881,-246.93456127,0.00013999,2]
[328810476,1717818632891,-155.0,0.00013999,2]
[328810479,1717818632901,-490.36578019,0.00013999,2]
[328810514,1717818638322,-2000.0,0.00013999,2]
[328810516,1717818638335,-1270.89616337,0.00013999,2]
[328810538,1717818642369,-304.33735203,0.00013999,2]
[328810539,1717818642382,-1585.73253736,0.00013999,2]
[328810540,1717818643411,-2535.6528,0.00013999,2]
[328810541,1717818643424,-2876.43244473,0.00013999,2]
[328810542,1717818643434,-7791.08634461,0.00013999,2]
[328810543,1717818643446,-478.70000222,0.00013999,2]
[328810544,1717818643458,-1089.30179335,0.00013999,2]
[328810545,1717818643471,-895.86543096,0.00013999,2]
[328810546,1717818644025,-23053.50872865,0.00013999,2]
[328810547,1717818644051,-4.01209973,0.00013999,2]
[328810548,1717818644074,-100.48314506,0.00013999,2]
[328810549,1717818644086,-1737.68677872,0.00013999,2]
[328810550,1717818644097,-1701.29434538,0.00013999,2]
[328810552,1717818644109,-265.88012991,0.00013999,2]
[328810554,1717818644121,-1663.5002,0.00013999,2]
[328810564,1717818646667,-142239.19919399,0.00013999,2]
[328810565,1717818646677,-50157.29770843,0.00014,2]
[328810566,1717818646689,-677.34,0.00014,2]
[328810567,1717818646702,-2151.17464644,0.00014,2]
[328810568,1717818646714,-8401.76107525,0.00014,2]
[328810580,1717819289340,338.56580849,0.00010448,2]
[328810581,1717819289979,792.23613721,0.00010448,2]
[328810582,1717819293484,1253.00742069,0.00010448,2]
[328810583,1717819297616,1261.28822006,0.00010448,2]
[328810584,1717819299877,407.49352188,0.00010448,2]
[328810585,1717819300545,296.73266768,0.00010448,2]
[328810586,1717819314384,408.4947075,0.00010448,2]
[328810587,1717819315617,179.78445485,0.00010448,2]
[328810588,1717819316923,1276.89737888,0.00010448,2]
[328810589,1717819318836,296.43451984,0.00010448,2]
[328810590,1717819320165,645.61249114,0.00010448,2]
[328810591,1717819326209,176.45363473,0.00010448,2]
[328810592,1717819337290,155.0,0.00010448,2]
[328810593,1717819340512,362.89692416,0.00010448,2]
[328810594,1717819342632,2552.99246825,7.836e-05,2]
[328810595,1717819342760,1363.30492251,0.00010448,2]
[328810596,1717819349293,155.0,0.00010448,2]
[328810597,1717819355053,218.82582271,0.00010448,2]
[328810598,1717819356626,2552.99246825,7.836e-05,2]
[328810599,1717819358134,7539.13161276,0.00010448,2]
[328810600,1717819360741,362.89692416,0.00010448,2]
[328810601,1717819360784,1363.30492251,0.00010448,2]
[328810602,1717819367315,208.68664867,0.00010448,2]
[328810603,1717819369052,155.0,0.00010448,2]
[328810604,1717819374628,2552.99246825,7.836e-05,2]
[328810605,1717819378497,238.30590975,0.00010448,2]
[328810606,1717819379691,947.71950495,0.00010448,2]
[328810607,1717819380880,1363.30492251,0.00010448,2]
[328810608,1717819385052,155.0,0.00010448,2]
[328810609,1717819395699,947.71950495,0.00010448,2]
[328810610,1717819396638,2552.99246825,7.836e-05,2]
[328810612,1717819399834,1363.30492251,0.00010448,2]
[328810613,1717819407063,155.0,0.00010448,2]
[328810614,1717819413716,947.71950495,0.00010448,2]
[328810615,1717819414765,577.42593413,0.00010448,2]
[328810616,1717819416639,1544.71487855,7.836e-05,2]
[328810617,1717819429063,155.0,0.00010448,2]
[328810618,1717819431873,8418.92102661,0.00010448,2]
[328810619,1717819433701,1024.78236534,0.00010448,2]
[328810620,1717819455117,155.0,7.836e-05,2]
[328810621,1717819473060,155.0,7.836e-05,2]
[328810622,1717819484725,144422.06291232,7.836e-05,2]
[328810623,1717819484750,351292.52401997,7.836e-05,2]
[328810624,1717819489061,155.0,7.836e-05,2]
[328810625,1717819513073,163.94201956,7.836e-05,2]
[328810627,1717819562773,142828.86928034,7.836e-05,2]
[328810629,1717819643161,-8418.92102661,0.00010446,2]
[328810630,1717819643184,-481.85167187,0.00010447,2]
[328810631,1717819643206,-4290.55941569,0.00010447,2]
[328810632,1717819643229,-150.0,0.00010449,2]
[328810633,1717819643252,-908.93522507,0.00010452,2]
[328810634,1717819643280,-327.96206021,0.00010453,2]
[328810635,1717819643301,-794.16956933,0.00010453,2]
[328810636,1717819643324,-161.46550851,0.00010494,2]
[328810637,1717819643346,-647.63141043,0.00010495,2]
[328810638,1717819643368,-164.57038171,0.00010495,2]
[328810639,1717819643390,-3805.29435359,0.00010495,2]
[328810640,1717819643413,-1143.82983278,0.00010496,2]
[328810650,1717819746154,-358.86237888,0.00010397,2]
[328810651,1717819746176,-136.52347133,0.00010496,2]
[328810652,1717819746198,-150.0,0.00010496,2]
[328810653,1717819746219,-1975.39725413,0.00010497,2]
[328810654,1717819746242,-255.76,0.00010497,2]
[328810655,1717819746265,-4068.60879566,0.00010497,2]
[328810656,1717819751092,-2965.3885,0.00010497,2]
[328810657,1717819762127,-4585.69270434,0.00010497,2]
[328810658,1717819762152,-2442.72890901,0.00010498,2]
[328810659,1717819762178,-150.99,0.00010498,2]
[328810660,1717819762200,-841.2,0.00011538,2]
[328810661,1717819762224,-441.42,0.00012672,2]
[328810662,1717819762249,-813.48792728,0.00013299,2]
[328810686,1717819831902,-146.20050574,0.00013299,2]
[328810687,1717819831913,-2489.98235229,0.0001372,2]
[328810688,1717819831923,-388.1123004,0.00013738,2]
[328810689,1717819831934,-986.52605652,0.0001386,2]
[328810690,1717819831947,-779.28,0.0001386,2]
[328810691,1717819831960,-7325.44313333,0.0001386,2]
[328810692,1717819831972,-26722.03556333,0.0001386,2]
[328810693,1717819831981,-2283.31246,0.0001386,2]
[328810694,1717819831992,-288.3822897,0.0001388,2]
[328810695,1717819832003,-235351.7938,0.000139,2]
[328810696,1717819832013,-217.67580566,0.00013999,2]
[328810697,1717819832023,-9094.94070298,0.00013999,2]
[328810698,1717819832033,-10132.9092366,0.00014,2]
[328810699,1717819832047,-9416.862,0.00014,2]
[328810700,1717819832070,-704.92261432,0.00014,2]
[328810701,1717819832081,-2332.32978955,0.00014,2]
[328810702,1717819832093,-713.07366266,0.00014,2]
[328810703,1717819832106,-893.59727248,0.00014,2]
[328810704,1717819832119,-404.4999995,0.00014,2]
[328810705,1717819832132,-44882.28588791,0.00014,2]
[328810706,1717819832146,-611.8,0.00014,2]
[328810707,1717819832159,-347.96815075,0.00014,2]
[328810708,1717819832172,-28971.4493695,0.00014,2]
[328810709,1717819832182,-266.01428946,0.00014,2]
[328810710,1717819832192,-172.76,0.00014125,2]
[328810711,1717819832202,-568.29,0.00014419,2]
[328810712,1717819832211,-172.76,0.00014493,2]
[328810713,1717819832222,-167.81,0.00014496,2]
[328810714,1717819832231,-200.0,0.00014504,2]
[328810715,1717819832241,-2751.0,0.00014589,2]
[328810716,1717819832252,-2889.48,0.00014665,2]
[328810717,1717819832262,-103.40199561,0.00014668,3]
[328810718,1717819832275,-396.59800439,0.00014668,3]
[328810719,1717819832284,-172.76,0.00014861,2]
[328810720,1717819832293,-441.42,0.00014936,2]
[328810721,1717819832303,-1000.0,0.00015386,2]
[328810722,1717819832313,-2283.31247,0.0001636,2]
[328810723,1717819832323,-441.42,0.000172,2]
[328810724,1717819832333,-250.0,0.00017253,2]
[328810725,1717819832342,-1000.0,0.00017309,2]
[328810726,1717819832352,-167.81,0.00017396,2]
[328810727,1717819832362,-646.8,0.00018356,3]
[328810728,1717819832372,-2283.31247,0.0001886,2]
[328810729,1717819832381,-151.72271986,0.00019178,2]
[328810730,1717819832391,-500.0,0.00019178,2]
[328810731,1717819832402,-500.0,0.00019178,2]
[328810732,1717819832412,-300.52565901,0.00019178,2]
[328810733,1717819832422,-1000.0,0.00019233,2]
[328810734,1717819832432,-441.42,0.00019464,2]
[328810735,1717819832442,-226.64653432,0.000201,2]
[328810736,1717819832451,-568.29,0.00020186,2]
[328810737,1717819832461,-1000.0,0.00021156,2]
[328810738,1717819832471,-2283.31247,0.0002136,2]
[328810739,1717819832481,-441.42,0.00021728,2]
[328810740,1717819832492,-191.41,0.00021918,2]
[328810741,1717819832503,-169.35,0.00021918,2]
[328810742,1717819832513,-2496.77,0.00022447,2]
[328810743,1717819832523,-1000.0,0.00023079,2]
[328810744,1717819832533,-657.0,0.000231,2]
[328810746,1717819832543,-2119.0,0.000232,2]
[328810748,1717819832553,-500.0,0.00023402,2]
[328810750,1717819832562,-500.0,0.00023402,2]
[328810752,1717819832573,-2283.31247,0.0002386,2]
[328810754,1717819832582,-441.42,0.00023991,2]
[328810756,1717819832592,-725.07871969,0.00024,3]
[328810758,1717819832601,-7776.53441973,0.00024,15]
[328810760,1717819832614,-22219.64422175,0.00024,15]
[328810763,1717819832623,-150.0,0.00024356,2]
[328810764,1717819832633,-152.46,0.00024384,2]
[328810766,1717819832643,-151.72,0.00024384,2]
[328810768,1717819832653,-240.63,0.00024384,2]
[328810769,1717819832664,-500.0,0.00024498,2]
[328810771,1717819832675,-162.45278748,0.00024798,2]
[328810772,1717819832685,-162.45278744,0.00024798,2]
[328810774,1717819832694,-162.45278744,0.00024798,2]
[328810775,1717819832706,-162.45278744,0.00024798,2]
[328810777,1717819832716,-162.45278744,0.00024798,2]
[328810778,1717819832725,-162.45278744,0.00024798,2]
[328810780,1717819832735,-162.45278744,0.00024798,2]
[328810781,1717819832746,-179.34305836,0.00024799,2]
[328810784,1717819832756,-1392.53462796,0.00025,2]
[328810787,1717819832766,-2496.77,0.00025187,2]
[328810789,1717819832775,-500.0,0.00025594,2]
[328810791,1717819832784,-4752.63746531,0.00026227,2]
[328810794,1717819832796,-73.28253469,0.00026227,2]
[328810796,1717819832805,-441.42,0.00026255,2]
[328810797,1717819832815,-162.45278744,0.00026344,2]
[328810799,1717819832825,-2283.31247,0.0002636,2]
[328810800,1717819832834,-500.0,0.0002669,2]
[328810801,1717819832843,-399.1822687,0.00026996,2]
[328810802,1717819832853,-166.66666665,0.00027038,2]
[328810803,1717819832862,-152.93544627,0.00027175,2]
[328810804,1717819832872,-166.58250168,0.00027202,2]
[328810806,1717819832882,-155.62633178,0.00027253,2]
[328810808,1717819832892,-155.5914595,0.00027277,2]
[328810810,1717819832904,-152.93544627,0.00027356,2]
[328810812,1717819832915,-258.58329675,0.00027394,2]
[328810814,1717819832925,-4769.85305733,0.000274,2]
[328810816,1717819832935,-154.4044715,0.00027433,2]
[328810817,1717819832947,-3916.0592423,0.00027504,2]
[328810818,1717819832960,-1069.3207577,0.00027504,2]
[328810819,1717819832971,-258.58329675,0.00027565,2]
[328810820,1717819832980,-154.75656005,0.00027577,2]
[328810821,1717819832990,-166.66666667,0.00027678,2]
[328810822,1717819832999,-152.93544627,0.00027708,2]
[328810823,1717819833009,-152.93544627,0.00027715,2]
[328810824,1717819833018,-155.00435958,0.00027739,2]
[328810825,1717819833028,-270.35492182,0.00027786,2]
[328810826,1717819833039,-229.64507818,0.00027786,2]
[328810827,1717819833049,-160.378114,0.00027856,2]
[328810828,1717819833058,-1449.05131853,0.000279,10]
[328810829,1717819833068,-127.15424335,0.00027927,2]
[328810830,1717819833079,-2369.61575665,0.00027927,2]
[328810831,1717819833089,-224.78043085,0.00028,2]
[328810832,1717819833098,-3843.68703135,0.00028,4]
[328810833,1717819833110,-854.82014811,0.00028,4]
[328810834,1717819833122,-25301.49282054,0.00028,4]
[328810835,1717819833131,-167.60004364,0.00028034,2]
[328810836,1717819833141,-258.58329675,0.00028078,2]
[328810837,1717819833151,-394.2,0.00028118,10]
[328810838,1717819833161,-150.0,0.0002812,2]
[328810839,1717819833171,-162.45278744,0.00028122,2]
[328810840,1717819833181,-283.9,0.00028128,2]
[328810841,1717819833191,-5153.0,0.00028128,2]
[328810842,1717819833200,-1471.0,0.00028128,2]
[328810843,1717819833210,-154.4044715,0.00028169,2]
[328810844,1717819833220,-157.68136385,0.00028181,2]
[328810845,1717819833230,-150.0,0.00028203,2]
[328810846,1717819833240,-321.0,0.00028213,7]
[328810847,1717819833249,-152.93544627,0.00028222,2]
[328810848,1717819833259,-154.75656005,0.00028222,2]
[328810849,1717819833269,-155.5914595,0.0002825,2]
[328810850,1717819833278,-191.81988271,0.00028267,2]
[328810851,1717819833288,-154.75656005,0.00028273,2]
[328810852,1717819833298,-150.0,0.00028281,2]
[328810853,1717819833308,-167.0,0.00028337,2]
[328810854,1717819833318,-258.58329675,0.00028367,2]
[328810855,1717819833327,-155.5914595,0.00028371,2]
[328810856,1717819833337,-155.73782343,0.00028379,2]
[328810857,1717819833347,-150.0,0.00028385,2]
[328810858,1717819833356,-150.0,0.0002841,2]
[328810859,1717819833367,-34021.55930827,0.00028419,2]
[328810860,1717819833376,-150.0,0.0002843,2]
[328810861,1717819833385,-258.58329675,0.0002846,2]
[328810862,1717819833395,-16940.96004026,0.000285,3]
[328810863,1717819833405,-191.81988268,0.000285,2]
[328810864,1717819833415,-150.0,0.00028512,2]
[328810865,1717819833424,-441.42,0.00028519,2]
[328810866,1717819833434,-4939.15,0.00028584,2]
[328810867,1717819833443,-150.0,0.00028649,2]
[328810868,1717819833453,-155.62633178,0.000287,2]
[328810869,1717819833462,-258.58329675,0.00028715,2]
[328810870,1717819833472,-4864.78,0.00028722,2]
[328810871,1717819833482,-191.81988268,0.00028734,2]
[328810872,1717819833491,-150.0,0.00028735,2]
[328810873,1717819833500,-157.68136385,0.00028752,2]
[328810874,1717819833510,-258.58329675,0.00028776,2]
[328810875,1717819833519,-600.0,0.000288,8]
[328810876,1717819833529,-759.0,0.000288,8]
[328810877,1717819833538,-150.0,0.00028824,2]
[328810878,1717819833548,-152.93544627,0.00028841,2]
[328810879,1717819833558,-150.0,0.00028877,2]
[328810880,1717819833567,-500.0,0.00028882,2]
[328810881,1717819833576,-258.58329675,0.00028898,2]
[328810882,1717819833586,-1042.51244556,0.000289,2]
[328810883,1717819833595,-589.0,0.000289,2]
[328810884,1717819833605,-167.67165516,0.000289,2]
[328810885,1717819833615,-150.0,0.00028905,2]
[328810886,1717819833625,-150.0,0.00028906,2]
[328810887,1717819833634,-1522.01479127,0.00028926,2]
[328810888,1717819833643,-155.00435958,0.00028934,2]
[328810889,1717819833653,-152.93544627,0.00028959,2]
[328810890,1717819833664,-191.81988268,0.00028967,2]
[328810891,1717819833676,-228.32569543,0.0002899,2]
[328810892,1717819833685,-70853.18336574,0.00029,2]
[328810893,1717819833695,-30000.0,0.00029,4]
[328810894,1717819833706,-3017.10349954,0.00029,2]
[328810895,1717819833715,-155.5914595,0.00029029,2]
[328810896,1717819833725,-152.93544627,0.00029034,2]
[328810897,1717819833735,-150.0,0.0002904,2]
[328810898,1717819833747,-152.93544627,0.00029041,2]
[328810899,1717819833757,-150.0,0.0002905,2]
[328810900,1717819833767,-150.95428163,0.00029053,2]
[328810901,1717819833777,-182.63649866,0.00029055,2]
[328810902,1717819833787,-5000.0,0.00029116,2]
[328810903,1717819833797,-150.0,0.00029144,2]
[328810904,1717819833807,-157.68136385,0.0002917,2]
[328810905,1717819833816,-258.58329675,0.00029176,2]
[328810906,1717819833826,-9613.7,0.000292,4]
[328810907,1717819833836,-191.81988268,0.000292,2]
[328810908,1717819833846,-150.0,0.00029215,2]
[328810909,1717819833856,-5000.0,0.0002922,2]
[328810910,1717819833866,-152.93544627,0.00029229,2]
[328810911,1717819833876,-7500.0,0.00029252,2]
[328810912,1717819833886,-150.0,0.0002926,2]
[328810913,1717819833896,-5000.0,0.00029265,2]
[328810914,1717819833905,-150.0,0.00029292,2]
[328810915,1717819833915,-150.0,0.000293,2]
[328810916,1717819833926,-10000.0,0.00029349,2]
[328810917,1717819833937,-25000.0,0.00029352,2]
[328810918,1717819833947,-633.77295662,0.00029364,2]
[328810919,1717819833956,-1519.8783283,0.00029385,2]
[328810920,1717819833966,-258.58329675,0.00029388,2]
[328810921,1717819833976,-1500.0,0.00029396,2]
[328810922,1717819833985,-167.67165516,0.000294,2]
[328810923,1717819833995,-4745.09133115,0.00029401,2]
[328810924,1717819834009,-1850.72560984,0.00029401,2]
[328810925,1717819834020,-5737.5,0.00029401,2]
[328810926,1717819834032,-4825.2271754,0.00029401,2]
[328810927,1717819834043,-597.34227907,0.00029401,2]
[328810928,1717819834055,-6778.07893965,0.00029401,2]
[328810929,1717819834071,-466.03466489,0.00029401,2]
[328810930,1717819834081,-150.0,0.00029404,2]
[328810931,1717819834091,-150.0,0.00029405,2]
[328810932,1717819834101,-150.0,0.0002941,2]
[328810933,1717819834113,-633.7729566,0.00029413,2]
[328810934,1717819834122,-154.75656005,0.00029418,2]
[328810935,1717819834132,-1500.0,0.00029428,2]
[328810936,1717819834142,-191.81988268,0.00029433,2]
[328810937,1717819834153,-157.68136385,0.00029449,2]
[328810938,1717819834162,-154.74,0.00029453,2]
[328810939,1717819834172,-301.99751141,0.00029456,2]
[328810940,1717819834181,-133.46414628,0.00029456,2]
[328810941,1717819834193,-16.53585372,0.00029456,2]
[328810942,1717819834203,-633.7729566,0.00029461,2]
[328810943,1717819834212,-2820.0,0.00029463,7]
[328810944,1717819834222,-3176.10345154,0.00029478,2]
[328810945,1717819834234,-1823.89654846,0.00029478,2]
[328810946,1717819834244,-150.0,0.00029479,2]
[328810947,1717819834254,-5000.0,0.00029486,2]
[328810948,1717819834264,-258.58329675,0.00029486,2]
[328810949,1717819834274,-312.0,0.000295,5]
[328810950,1717819834284,-150.0,0.00029503,2]
[328810951,1717819834294,-633.7729566,0.0002951,2]
[328810952,1717819834304,-150.0,0.00029536,2]
[328810953,1717819834314,-74.1781322,0.00029539,2]
[328810954,1717819834440,-75.8218678,0.00029539,2]
[328810955,1717819834450,-150.0,0.0002954,2]
[328810956,1717819834461,-150.0,0.0002954,2]
[328810957,1717819834472,-633.7729566,0.00029559,2]
[328810958,1717819834481,-150.0,0.00029562,2]
[328810959,1717819834491,-150.0,0.00029564,2]
[328810960,1717819834502,-153.16287005,0.00029565,2]
[328810961,1717819834512,-150.0,0.00029581,2]
[328810962,1717819834521,-150.0,0.00029584,2]
[328810963,1717819834531,-155.62633179,0.00029593,2]
[328810964,1717819834541,-633.7729566,0.00029608,2]
[328810965,1717819834551,-150.0,0.00029623,2]
[328810966,1717819834561,-150.0,0.00029652,2]
[328810967,1717819834572,-312.59301783,0.00029656,2]
[328810979,1717819837903,-321.17993877,0.00029656,2]
[328810980,1717819837914,-149.61457935,0.00029659,2]
[328810981,1717819837926,-2019.18783417,0.00029659,2]
[328810982,1717819837965,-2831.19758648,0.00029659,2]
[328810983,1717819837974,-150.0,0.00029662,2]
[328810984,1717819837984,-191.81988268,0.00029667,2]
[328810985,1717819837994,-258.58329675,0.00029675,2]
[328810986,1717819838003,-150.0,0.00029681,2]
[328810987,1717819838012,-1401.68744601,0.00029699,4]
[328810988,1717819838024,-88.79842163,0.00029699,4]
[328810989,1717819838033,-150.0,0.00029699,2]
[328810990,1717819838043,-633.7729566,0.00029705,2]